Cogmind - Beta 9.4 @@@ ROGUE MODE // 2020.01.10 @ 11:08:35 // Winter2019/RPGLIKE Player: Terminus Result: Destroyed by S-27 Virus with Autogun Performance ------------- Evolutions (3) 1500 Regions Visited (8) 1600 Robots Destroyed (142) 710 Value Destroyed (4787) 4787 Prototype IDs (3) 60 Alien Tech Used (0) 0 Bonus (750) 750 TOTAL SCORE: 9407 Bonus ------- High Alert Combat Kills 921 Friendly Fire -171 Cogmind --------- Core Integrity 0/600 Matter 290/300 Energy 144/200 System Corruption 4% Temperature Cool (0) Movement Flying (29) Location -7/Factory Parts ------- > --- POWER (2) -------- Micro Nuclear Core Micro Nuclear Core > --- PROPULSION (4) --- Improved VTOL Module Improved VTOL Module Cooled VTOL Module Cooled VTOL Module > --- UTILITY (9) ------ Improved Cooling System Advanced Signal Interpreter Advanced Targeting Computer Improved Hacking Suite Improved Hacking Suite Improved Hacking Suite Improved Hacking Suite System Shield Improved System Shield > --- WEAPON (3) ------- Lightning Gun Lightning Gun Great Axe > --- INVENTORY (4) ---- Heavy Ion Cannon Shock Bomb Launcher Remote Datajack Peak State ------------ > --- POWER ------------ Micro Nuclear Core Micro Nuclear Core > --- PROPULSION ------- Improved VTOL Module Improved VTOL Module Cooled VTOL Module Cooled VTOL Module > --- UTILITY ---------- Improved Cooling System Advanced Signal Interpreter Advanced Targeting Computer Improved Hacking Suite Improved Hacking Suite Improved Hacking Suite Improved Hacking Suite System Shield Improved System Shield > --- WEAPON ----------- Lightning Gun Lightning Gun Great Axe > --- INVENTORY -------- Lightning Gun Heavy Ion Cannon Shock Bomb Launcher Remote Datajack [Rating: 77] Favorites ----------- Power Micro Nuclear Core Engine Light Angular Momentum Engine Power Core Micro Nuclear Core Propulsion Flight Unit Leg Aluminum Leg Hover Unit Gravmag System Flight Unit Flight Unit Utility Hacking Suite Device Cooling System Processor Improved Signal Interpreter Hackware Hacking Suite Weapon Lightning Gun Energy Gun Lightning Gun Ballistic Gun Heavy Assault Rifle Slashing Weapon Great Axe Build | -11 -10 -10 -10 -9 -8 -7 -7 -7 ------- Run | Scr Mat Min Exi Min Mat Fac Was Fac Slots Evolved 14 | 4 2 . 2 . 4 2 . . Power 1 | . . . . . 1 . . . Propulsion 3 | 1 1 . . . 1 . . . Utility 8 | 2 1 . 1 . 2 2 . . Weapon 2 | 1 . . 1 . . . . . Parts Attached 73 | 5 11 3 . . 27 13 . 14 Power 7 | 1 . . . . 4 2 . . Engine 5 | 1 . . . . 4 . . . Core 2 | . . . . . . 2 . . Reactor . | . . . . . . . . . Propulsion 14 | 2 4 . . . 4 3 . 1 Treads . | . . . . . . . . . Leg 2 | 2 . . . . . . . . Wheel . | . . . . . . . . . Hover 1 | . . . . . . 1 . . Flight 11 | . 4 . . . 4 2 . 1 Utility 23 | . 3 1 . . 7 2 . 10 Device 6 | . 1 1 . . 2 . . 2 Storage . | . . . . . . . . . Processor 5 | . 1 . . . 1 2 . 1 Hackware 12 | . 1 . . . 4 . . 7 Protection . | . . . . . . . . . Artifact . | . . . . . . . . . Weapon 29 | 2 4 2 . . 12 6 . 3 Energy Gun 19 | 2 2 1 . . 9 3 . 2 Energy Cannon . | . . . . . . . . . Ballistic Gun 2 | . . . . . 2 . . . Ballistic Cannon . | . . . . . . . . . Launcher . | . . . . . . . . . Special Weapon . | . . . . . . . . . Impact Weapon . | . . . . . . . . . Slashing Weapon 8 | . 2 1 . . 1 3 . 1 Piercing Weapon . | . . . . . . . . . Special Melee Weapon . | . . . . . . . . . Unidentified Prototypes 2 | . . . . . 2 . . . Parts Lost 3 | . . . . . . 2 . 1 Power . | . . . . . . . . . Propulsion 1 | . . . . . . 1 . . Utility 1 | . . . . . . 1 . . Weapon 1 | . . . . . . . . 1 Highest Loss Streak 1 | . . . . . . 1 . 1 Average Slot Usage (%) 94 | . 84 90 75 75 96 96 88 98 Engine 6 | . 11 10 8 8 9 4 . . Core 4 | . . . . . . 6 11 11 Leg 1 | . 9 . . . . . . . Flight 22 | . 14 30 25 25 27 21 22 22 Device 7 | . 10 10 8 8 7 5 5 5 Processor 9 | . 8 10 8 8 9 10 11 10 Hackware 20 | . 5 10 8 8 19 27 22 31 Energy Gun 15 | . 22 18 16 16 16 13 16 11 Ballistic Gun 1 | . . . . . 3 . . . Slashing Weapon 1 | . 1 1 . . . 2 . 4 Naked Turns . | . . . . . . . . . Heaviest Build 30 | 8 10 10 9 9 30 30 26 26 Greatest Support 32 | 25 25 17 13 13 30 31 26 32 Greatest Overweight (x) 1 | . . . . . . 1 . . Average Overweight (x) . | . . . . . . . . . Largest Inventory Capacity 4 | 1 2 2 2 2 4 4 4 4 Average Capacity 3 | . 1 2 2 2 3 4 4 4 Most Carried 4 | . 2 2 2 2 4 4 4 4 Average Carried 2 | . . 1 2 2 3 3 4 3 Final Capacity 4 | 1 2 2 2 2 4 4 4 4 Final Carried 4 | . 2 2 2 2 4 4 4 3 Class Distribution -------------------- 34% | Hacker-Sprinter 23% | Wizard-Sprinter 15% | Scavenger-Mutant 10% | Mutant 8% | Scavenger-Gunner 5% | Scavenger-Sprinter Dominant Class ---------------- Scavenger-Mutant | -10/Materials Scavenger-Mutant | -10/Mines Scavenger-Mutant | -10/Exiles Scavenger-Mutant | -9/Mines Hacker-Sprinter | -8/Materials Hacker-Sprinter | -7/Factory Hacker-Sprinter | -7/Waste Wizard-Sprinter | -7/Factory Resources | -11 -10 -10 -10 -9 -8 -7 -7 -7 ----------- Run | Scr Mat Min Exi Min Mat Fac Was Fac Matter Collected 1269 | 207 133 20 . . 654 125 . 130 Remotely . | . . . . . . . . . Salvage Created 5142 | . 569 100 . . 3042 1050 . 381 Parts 296 | . 52 13 . . 161 49 . 21 Haulers Intercepted 9 | . 2 . . . 6 1 . . Recyclers Shooed 3 | . 2 . . . . 1 . . Parts Field Recycled . | . . . . . . . . . Retrieved Matter . | . . . . . . . . . Parts Self-Destructed . | . . . . . . . . . Prevented . | . . . . . . . . . Kills | -11 -10 -10 -10 -9 -8 -7 -7 -7 ------- Run | Scr Mat Min Exi Min Mat Fac Was Fac Combat Hostiles Destroyed 107 | . 17 6 . . 60 17 . 7 Melee 7 | . 4 . . . . 2 . 1 Guns 87 | . 12 6 . . 53 11 . 5 AOE 8 | . . . . . 4 3 . 1 Classes Destroyed 13 | . 8 . . . 4 1 . . Worker 3 | . 2 . . . . 1 . . Builder 2 | . 1 . . . . 1 . . Hauler 9 | . 2 . . . 6 1 . . Recycler 3 | . 1 . . . 2 . . . Operator 5 | . 1 . . . 2 1 . 1 Watcher 12 | . 3 . . . 5 4 . . Swarmer 32 | . 6 6 . . 14 4 . 2 Grunt 51 | . 11 . . . 29 9 . 2 Brawler 1 | . . . . . 1 . . . Duelist 1 | . . . . . 1 . . . Sentry 15 | . . . . . 11 2 . 2 Hunter 4 | . . . . . 4 . . . Programmer 3 | . . . . . . 2 . 1 Thug 1 | . . 1 . . . . . . Best Kill Streak 8 | . 4 3 . . 8 5 . 3 Combat Bots Only 6 | . 4 3 . . 6 4 . 3 Max Kills in Single Turn 3 | . 1 1 . . 2 3 . 1 Gunslinging 1 | . . . . . 1 . . . Exploded 3 | . . . . . 2 3 . 1 Melee 1 | . 1 . . . . 1 . 1 Uniques/NPCs Destroyed . | . . . . . . . . . Combat | -11 -10 -10 -10 -9 -8 -7 -7 -7 -------- Run | Scr Mat Min Exi Min Mat Fac Was Fac Damage Taken 4521 | . 657 134 . . 2260 683 . 787 Core 3716 | . 553 106 . . 1856 562 . 639 Absorbed by Shields . | . . . . . . . . . Redirected to Core 2732 | . 325 76 . . 1438 408 . 485 Core Remaining (%) 98 | 100 . . . 100 94 . . . Volleys Fired 372 | . 91 12 . . 202 40 . 27 Largest 3 | . 2 2 . . 3 3 . 3 Hottest 181 | . 90 90 . . 181 165 . 165 Shots Fired 977 | . 181 24 . . 602 108 . 62 Gun 977 | . 181 24 . . 602 108 . 62 Cannon . | . . . . . . . . . Launcher . | . . . . . . . . . Special . | . . . . . . . . . Kinetic 118 | . . . . . 118 . . . Thermal 446 | . 181 24 . . 241 . . . Explosive . | . . . . . . . . . Electromagnetic 413 | . . . . . 243 108 . 62 Robot Hit Streak 27 | . 23 7 . . 23 17 . 27 Robot Miss Streak 4 | . 4 3 . . 3 4 . 4 Penetration Max . | . . . . . . . . . Secondary Targets 17 | . . 4 . . 10 2 . 1 Max Gunslinging Chain 1 | . . 1 . . 1 1 . 1 Shots Hit Robots 620 | . 103 15 . . 377 82 . 43 Core Hits 231 | . 39 7 . . 135 34 . 16 Critical Hits 1 | . . . . . 1 . . . Critical Kills . | . . . . . . . . . Critical Parts Destroyed 1 | . . . . . 1 . . . Melee Attacks 85 | . 18 1 . . 1 21 . 44 Impact . | . . . . . . . . . Slashing 85 | . 18 1 . . 1 21 . 44 Piercing . | . . . . . . . . . Sneak Attacks 6 | . . 1 . . . 5 . . Combat Hostiles . | . . . . . . . . . Follow-up Attacks . | . . . . . . . . . Damage Inflicted 11270 | . 1345 243 . . 6104 2562 . 1016 Guns 9058 | . 1121 172 . . 5722 1493 . 550 Cannons . | . . . . . . . . . Explosions 775 | . 96 . . . 382 232 . 65 Melee 1437 | . 128 71 . . . 837 . 401 Ramming . | . . . . . . . . . Kinetic 942 | . . . . . 942 . . . Thermal 4026 | . 1121 172 . . 2436 232 . 65 Explosive 96 | . 96 . . . . . . . Electromagnetic 4769 | . . . . . 2726 1493 . 550 Impact . | . . . . . . . . . Slashing 1437 | . 128 71 . . . 837 . 401 Piercing . | . . . . . . . . . Highest Corruption 4 | . . . . . . . . 4 Average Corruption 1 | . . . . . . . . 1 Corruption Purged . | . . . . . . . . . Effects 7 | . . . . . . . . 7 Message Errors 2 | . . . . . . . . 2 Heat Flow Errors 1 | . . . . . . . . 1 Energy Discharges 3 | . . . . . . . . 3 Data Loss (minor) 1 | . . . . . . . . 1 Overload Shots . | . . . . . . . . . Overflow Damage 446 | . . . . . 56 359 . 31 Projectiles . | . . . . . . . . . Explosions 56 | . . . . . 56 . . . Melee 390 | . . . . . . 359 . 31 Knockbacks . | . . . . . . . . . Impact . | . . . . . . . . . Kinetic . | . . . . . . . . . Secondary . | . . . . . . . . . Self-Inflicted Damage 79 | . . . . . 79 . . . Shots 2 | . . . . . 2 . . . Rammed . | . . . . . . . . . Targets Rammed . | . . . . . . . . . Kicked . | . . . . . . . . . Crushed . | . . . . . . . . . Highest Temperature 216 | . 28 . . . 216 129 . 77 Average Temperature 47 | . 16 . . . 51 41 . 21 Received Heat Transfer 1371 | . 228 . . . 819 228 . 96 Siege Activations . | . . . . . . . . . Robots Corrupted 6 | . . . . . 4 2 . . Combat Hostiles 4 | . . . . . 3 1 . . Parts Fried 48 | . . . . . 24 19 . 5 Impact Corruptions . | . . . . . . . . . Robots Melted 1 | . 1 . . . . . . . Combat Hostiles 1 | . 1 . . . . . . . Parts Melted 15 | . 6 3 . . 6 . . . Heat Transferred 9072 | . 2939 447 . . 5436 200 . 50 Parts Sabotaged . | . . . . . . . . . Parts Stolen . | . . . . . . . . . Parts Stripped . | . . . . . . . . . Power Chain Reactions 9 | . . . . . 5 3 . 1 Missiles Intercepted . | . . . . . . . . . Alert | -11 -10 -10 -10 -9 -8 -7 -7 -7 ------- Run | Scr Mat Min Exi Min Mat Fac Was Fac Peak Influence 1193 | . 419 318 . . 1193 845 267 359 Average Influence 337 | . 172 283 . . 614 536 252 58 Maximum Alert Level 4 | . 2 1 . . 4 3 1 1 Low Security (%) 42 | 100 59 7 . 100 6 24 . 84 Level 1 22 | . 37 92 . . 18 . 100 15 Level 2 17 | . 3 . . . 34 39 . . Level 3 16 | . . . . . 35 35 . . Level 4 1 | . . . . . 3 . . . Level 5 . | . . . . . . . . . High Security . | . . . . . . . . . Max Security . | . . . . . . . . . Squads Dispatched 26 | . 3 . . . 13 6 . 4 Investigation 14 | . 2 . . . 5 4 . 3 Extermination 1 | . . . . . . . . 1 Reinforcement 6 | . 1 . . . 4 1 . . Assault 2 | . . . . . 1 1 . . Garrison 3 | . . . . . 3 . . . Intercept . | . . . . . . . . . Construction Impeded 1 | . . . . . 1 . . . Haulers Reinforced . | . . . . . . . . . Stealth | -11 -10 -10 -10 -9 -8 -7 -7 -7 --------- Run | Scr Mat Min Exi Min Mat Fac Was Fac Distress Signals 10 | . 2 . . . 5 3 . . Communications Jammed . | . . . . . . . . . Distress Signals . | . . . . . . . . . Times Spotted 179 | . 30 6 . 2 86 33 5 17 Peak Tracking Total 11 | . 5 3 . 11 8 5 6 4 Tactical Retreats 15 | . 3 . . . 6 3 . 3 Traps | -11 -10 -10 -10 -9 -8 -7 -7 -7 ------- Run | Scr Mat Min Exi Min Mat Fac Was Fac Traps Triggered 9 | . . . . . 4 1 . 4 Indirectly . | . . . . . . . . . Trap Hack Attempts . | . . . . . . . . . Triggered . | . . . . . . . . . Disarmed . | . . . . . . . . . Reprogrammed . | . . . . . . . . . Reused . | . . . . . . . . . Traps Extracted . | . . . . . . . . . Installed . | . . . . . . . . . Triggered . | . . . . . . . . . Machines | -11 -10 -10 -10 -9 -8 -7 -7 -7 ---------- Run | Scr Mat Min Exi Min Mat Fac Was Fac Machines Disabled 46 | . 8 . . . 24 4 . 10 Max in Single Turn 2 | . 1 . . . 2 2 . 2 Garrison Access 3 | . . . . . 1 1 . 1 Machines Sabotaged . | . . . . . . . . . Garrisons Compromised . | . . . . . . . . . Overloaded Fab Kills . | . . . . . . . . . Fab Network Shutdowns 1 | . . . . . . 1 . . Hacking | -11 -10 -10 -10 -9 -8 -7 -7 -7 --------- Run | Scr Mat Min Exi Min Mat Fac Was Fac Machines Accessed 43 | . 9 . 1 . 11 12 . 10 Terminals 32 | . 7 . . . 9 10 . 6 Fabricators 4 | . . . . . . 1 . 3 Repair Stations . | . . . . . . . . . Recycling Units 3 | . 2 . . . 1 . . . Scanalyzers . | . . . . . . . . . Garrison Access 3 | . . . . . 1 1 . 1 Total Hacks 162 | . 21 . 4 . 41 48 . 48 Successful 127 | . 17 . 4 . 29 39 . 38 Failed 35 | . 4 . . . 12 9 . 10 Catastrophic 4 | . 1 . . . 3 . . . Database Lockouts . | . . . . . . . . . Manual 131 | . 21 . . . 35 42 . 33 Terminals 128 | . 19 . . . 39 41 . 29 Fabricators 24 | . . . . . . 6 . 18 Repair Stations . | . . . . . . . . . Recycling Units 3 | . 2 . . . 1 . . . Scanalyzers . | . . . . . . . . . Garrison Access 3 | . . . . . 1 1 . 1 Terminal Hacks 70 | . 7 . 4 . 20 24 . 15 Record 4 | . . . 4 . . . . . Part Schematic 6 | . . . . . 1 5 . . Branch Access Points 3 | . . . . . 1 1 . 1 Terminal Index 2 | . . . . . . 1 . 1 Fabricator Index 2 | . . . . . . 1 . 1 Alert Level 14 | . 2 . . . 4 4 . 4 Unreport Threat 14 | . . . . . 6 5 . 3 Recall Assault 1 | . . . . . . 1 . . Hauler Manifests 3 | . . . . . 1 1 . 1 Zone Layout 21 | . 5 . . . 7 5 . 4 Fabricator Hacks 14 | . . . . . . 3 . 11 Load Schematic 5 | . . . . . . 1 . 4 Build 9 | . . . . . . 2 . 7 Repair Station Hacks . | . . . . . . . . . Recycling Unit Hacks . | . . . . . . . . . Scanalyzer . | . . . . . . . . . Garrison Access Hacks 3 | . . . . . 1 1 . 1 Seal Access 3 | . . . . . 1 1 . 1 Unauthorized Hacks 87 | . 20 . . . 18 22 . 27 Terminals 29 | . 8 . . . 7 8 . 6 Assimilate 4 | . 1 . . . . 3 . . Botnet 25 | . 7 . . . 7 5 . 6 Fabricators 8 | . . . . . . 3 . 5 Report 2 | . . . . . . 1 . 1 Prioritize 3 | . . . . . . 1 . 2 Siphon 3 | . . . . . . 1 . 2 Repair Stations . | . . . . . . . . . Recycling Units 3 | . 2 . . . 1 . . . Tunnel 3 | . 2 . . . 1 . . . Scanalyzers . | . . . . . . . . . Garrison Access . | . . . . . . . . . Data Cores Recovered 1 | . . . . . . . . 1 Used . | . . . . . . . . . Hacking Detections 30 | . 7 . . . 9 7 . 7 Full Trace Events 9 | . . . . . 2 4 . 3 Feedback Events 2 | . . . . . . 1 . 1 Corruption 1 | . . . . . . . . 1 Hackware Fried 1 | . . . . . . 1 . . Feedback Blocked . | . . . . . . . . . Robot Schematics Acquired . | . . . . . . . . . Robots Built . | . . . . . . . . . Matter . | . . . . . . . . . Time . | . . . . . . . . . Total Robot Build Rating . | . . . . . . . . . Part Schematics Acquired 6 | . . . . . 1 5 . . Parts Built 7 | . . . . . . 2 . 5 Matter 1247 | . . . . . . 441 . 806 Time 364 | . . . . . . 201 . 163 Total Part Build Rating 33 | . . . . . . 8 . 25 Parts Repaired . | . . . . . . . . . Time . | . . . . . . . . . Parts Recycled . | . . . . . . . . . Recycled Matter . | . . . . . . . . . Retrieved Matter . | . . . . . . . . . Retrieved Components . | . . . . . . . . . Parts Scanalyzed . | . . . . . . . . . Part Schematics Acquired . | . . . . . . . . . Parts Damaged . | . . . . . . . . . Bothacking | -11 -10 -10 -10 -9 -8 -7 -7 -7 ------------ Run | Scr Mat Min Exi Min Mat Fac Was Fac Used RIF Installer . | . . . . . . . . . Robots Hacked . | . . . . . . . . . Non-combat . | . . . . . . . . . Combat . | . . . . . . . . . Robot Hacks Applied . | . . . . . . . . . Relay Couplers Released . | . . . . . . . . . Robots Rewired . | . . . . . . . . . Allies Hacked . | . . . . . . . . . Hacks Repelled . | . . . . . . . . . Allies | -11 -10 -10 -10 -9 -8 -7 -7 -7 -------- Run | Scr Mat Min Exi Min Mat Fac Was Fac Total Allies 6 | . . 1 . 2 . 3 . . Largest Group 2 | . . 1 . 2 . 2 2 . Highest-Rated Group 52 | . . 31 . 45 . 52 52 . Highest-Rated Ally 31 | . . 31 . 31 . 26 26 . Total Orders . | . . . . . . . . . Ally Attacks 2 | . . . . 2 . . . . Total Damage 20 | . . . . 20 . . . . Kills 1 | . . . . 1 . . . . Allies Corrupted . | . . . . . . . . . Allies Melted . | . . . . . . . . . Intel | -11 -10 -10 -10 -9 -8 -7 -7 -7 ------- Run | Scr Mat Min Exi Min Mat Fac Was Fac Robot Analysis Total . | . . . . . . . . . Derelict Logs Recovered 2 | . . 2 . . . . . . Drone Launches . | . . . . . . . . . Drone Recoveries . | . . . . . . . . . Exploration | -11 -10 -10 -10 -9 -8 -7 -7 -7 ------------- Run | Scr Mat Min Exi Min Mat Fac Was Fac Turns Passed 4561 | 43 907 162 57 20 1439 653 45 1235 Spaces Moved 5145 | 39 819 258 153 33 1507 912 155 1269 Core 15 | 15 . . . . . . . . Treads . | . . . . . . . . . Legs 213 | 24 189 . . . . . . . Wheels . | . . . . . . . . . Hover . | . . . . . . . . . Flight 4917 | . 630 258 153 33 1507 912 155 1269 Fastest Speed 26 | 50 37 34 37 37 28 27 29 26 Average Speed 34 | 93 56 36 37 37 29 31 29 28 Slowest Speed 120 | 120 120 37 37 37 37 103 29 29 Overloaded Moves . | . . . . . . . . . Propulsion Burnouts . | . . . . . . . . . Robots Hopped 58 | . 6 3 . . 21 13 . 15 Cave-ins Triggered . | . . . . . . . . . Exploration Rate (%) 49 | 4 96 49 54 9 89 32 81 31 Regions Visited 8 Branch Regions 3 Pre-discovered Areas 6 | . 2 2 1 . 1 . . . Known Exits Taken 1 | . . . . . 1 . . . Unknown Exits Taken 5 | 1 1 1 1 1 . . . . Scrap Searched . | . . . . . . . . . Spaces Dug 33 | . . . . . 1 6 . 26 Terrain Destroyed 212 | . 62 . . . 105 8 . 37 Melee 33 | . . . . . 1 6 . 26 Projectile . | . . . . . . . . . AOE 179 | . 62 . . . 104 2 . 11 Actions | -11 -10 -10 -10 -9 -8 -7 -7 -7 --------- Run | Scr Mat Min Exi Min Mat Fac Was Fac Total 6871 | 43 1038 294 152 40 2024 1141 154 1985 Wait 1027 | . 71 10 . 8 181 139 . 618 Move 5030 | 38 806 252 152 32 1465 890 154 1241 Hop 50 | . 6 2 . . 20 9 . 13 Pick Up 14 | . 3 1 . . 7 2 . 1 Fast Attach 45 | 5 7 1 . . 19 6 . 7 Attach 2 | . . . . . 1 . . 1 Detach . | . . . . . . . . . Swap 26 | . 4 2 . . 7 7 . 6 Drop 36 | . 4 2 . . 22 6 . 2 Fire 372 | . 91 12 . . 202 40 . 27 Melee 85 | . 18 1 . . 1 21 . 44 Ram . | . . . . . . . . . Kick . | . . . . . . . . . Crush . | . . . . . . . . . Escape Stasis 17 | . . . . . . . . 17 Rewire . | . . . . . . . . . Trap . | . . . . . . . . . Miscellaneous 167 | . 28 11 . . 99 21 . 8 Route ------- -11/Scrapyard -10/Materials (discovered 4 exits: [*Mat x3] / [*Min]) -10/Mines (discovered 2 exits: [*Mat] / *Exi) -10/Exiles (discovered 2 exits: [*Min x2]) -9/Mines -8/Materials (discovered 2 exits: *Fac x2) -7/Factory (discovered 5 exits: *Fac / *Sto x2 / Low x2) -7/Waste -7/Factory (discovered 6 exits: *Fac x2 / Sto x2 / *Low x2) History --------- Turn | Location | Event 5 | -11/Scrapyard | Upgraded with Propulsion slot (x1) 5 | -11/Scrapyard | Upgraded with Utility slot (x2) 5 | -11/Scrapyard | Upgraded with Weapon slot (x1) 14 | -11/Scrapyard | Discovered new exit (range 15) 44 | -11/Scrapyard | Entered Materials 241 | -10/Materials | Discovered new exit (range 8) 307 | -10/Materials | Build established: Mutant 334 | -10/Materials | Discovered new exit (range 7) 461 | -10/Materials | Discovered new exit (range 3) 602 | -10/Materials | Reached level 2 611 | -10/Materials | Upgraded with Utility slot (x1) 707 | -10/Materials | Discovered new exit (range 15) 799 | -10/Materials | Build established: Scavenger-Mutant 927 | -10/Materials | Reached level 3 939 | -10/Materials | Upgraded with Propulsion slot (x1) 951 | -10/Materials | Entered Mines 981 | -10/Mines | Learned location of Zion (-6) 984 | -10/Mines | Received a Rocket Launcher from a helpful Derelict 1051 | -10/Mines | Discovered new exit (range 6) 1062 | -10/Mines | Learned location of Mines (-9) 1067 | -10/Mines | Received a Mining Laser from a helpful Derelict 1111 | -10/Mines | Deemed a non-threat by the Exiles lab entrance 1111 | -10/Mines | Discovered new exit (range 5) 1113 | -10/Mines | Entered Exiles 1115 | -10/Exiles | Reached level 4 1115 | -10/Exiles | Upgraded with Utility slot (x1) 1115 | -10/Exiles | Upgraded with Weapon slot (x1) 1119 | -10/Exiles | Discovered new exit (range 15) 1123 | -10/Exiles | Met 8R-AWN 1129 | -10/Exiles | Met EX-HEX 1140 | -10/Exiles | Met EX-BIN 1146 | -10/Exiles | Met EX-DEC 1167 | -10/Exiles | Discovered new exit (range 10) 1170 | -10/Exiles | Entered Mines 1171 | -9/Mines | Assembled infested the area 1177 | -9/Mines | Discovered new exit (range 9) 1190 | -9/Mines | Entered Materials 1192 | -8/Materials | Reached level 5 1192 | -8/Materials | Upgraded with Propulsion slot (x1) 1343 | -8/Materials | Reached level 6 1391 | -8/Materials | Discovered new exit (range 15) 1472 | -8/Materials | Garrison activated, responded to threat 1491 | -8/Materials | Core integrity fell below 50% 1520 | -8/Materials | Build established: Scavenger-Gunner 1562 | -8/Materials | Reached level 7 1576 | -8/Materials | Upgraded with Utility slot (x1) 1808 | -8/Materials | Reached level 8 2065 | -8/Materials | Reached level 9 2069 | -8/Materials | Upgraded with Power slot (x1) 2175 | -8/Materials | Build established: Hacker-Sprinter 2186 | -8/Materials | Discovered new exit (range 15) 2239 | -8/Materials | Reached level 10 2390 | -8/Materials | First assault squad dispatched 2414 | -8/Materials | Reached level 11 2414 | -8/Materials | Upgraded with Utility slot (x1) 2629 | -8/Materials | Identified exit to Factory 2629 | -8/Materials | Entered Factory 2631 | -7/Factory | Reached level 12 2631 | -7/Factory | Upgraded with Utility slot (x1) 2698 | -7/Factory | Identified exit to Storage 2698 | -7/Factory | Identified exit to Lower Caves 2727 | -7/Factory | Reached level 13 2853 | -7/Factory | Core integrity fell below 50% 3026 | -7/Factory | Fabricated Cld. VTOL Module (x1) 3029 | -7/Factory | First assault squad dispatched 3070 | -7/Factory | Reached level 14 3093 | -7/Factory | Fabricated Cld. VTOL Module (x1) 3096 | -7/Factory | Upgraded with Utility slot (x1) 3139 | -7/Factory | Discovered new exit (range 8) 3141 | -7/Factory | Identified exit to Factory 3192 | -7/Factory | Hacking Suite fried by hacking feedback 3218 | -7/Factory | Local fabrication network quarantined 3282 | -7/Factory | Manually triggered Chute Trap 3282 | -7/Factory | Sucked down chute 3282 | -7/Factory | Entered Waste 3289 | -7/Waste | Spotted C-40 Crusher 3293 | -7/Waste | Spotted C-40 Crusher 3293 | -7/Waste | Spotted C-40 Crusher 3305 | -7/Waste | 2 allies followed down the chute 3308 | -7/Waste | Spotted C-40 Crusher 3310 | -7/Waste | Spotted C-40 Crusher 3325 | -7/Waste | Discovered new exit (range 10) 3327 | -7/Waste | Identified exit to Factory 3327 | -7/Waste | Entered Factory 3397 | -7/Factory | Discovered exit to Lower Caves (range 14) 3417 | -7/Factory | Discovered exit to Factory (range 7) 3458 | -7/Factory | Reached level 15 3506 | -7/Factory | Discovered exit to Factory (range 15) 3707 | -7/Factory | Fabricated Imp. Hacking Suite (x1) 3731 | -7/Factory | Fabricated Imp. Hacking Suite (x1) 3755 | -7/Factory | Fabricated Imp. Hacking Suite (x1) 3795 | -7/Factory | Build established: Wizard-Sprinter 3862 | -7/Factory | Assembled infested ambush trap array 3953 | -7/Factory | Fabricated Imp. Hacking Suite (x1) 4409 | -7/Factory | Fabricated Imp. System Shield (x1) 4544 | -7/Factory | Core integrity fell below 20% 4562 | -7/Factory | Destroyed by S-27 Virus with Autogun Last Messages --------------- 04489_ Acquired 60 matter. 04503_ 8|1SEWP8N9O%RHVGRK/AHLZV EQ35#U6NX=TA 04529_ A-02 Transporter suffers critical hit. 04530_ P-60 Hacker resets S-27 Virus, system corruption cleaned. 04534_ S-27 Virus destroyed. 04534_ K-01 Serf collects debris. 04540_ S-27 Virus destroyed. 04540_ Switching to secondary target: P-60 Hacker. 04541_ K-01 Serf collects debris. 04545_ Lightning Gun destroyed. 04546_ Destroyed Shock Rifle. 04547_ K-01 Serf collects debris. 04551_ P-60 Hacker destroyed. 04551_ K-01 Serf collects debris. 04555_ System corrupted: Heat flow error (+132). 04555_ K-01 Serf collects debris. 04556_ K-01 Serf destroyed. 04557_ K-01 Serf collects debris. 04561_ R-06 Scavenger collects VTOL Module. 04562_ Door malfunctions. Map ----- +----------------------------------------------------+ | """"""" #????##############??????###?????###?? | | """"""" #????# ######?????????????? | | """"""" ####?# ## #?????????????? | | " #?# #### #?????????????? | | ################?# ##%########????????? | | ?????????????????# # ! #????????? | | ?????????????????# # #????????? | | ?????????????????# # !! #????????? | | ?????????????????# # !/ #??????### | | ?????????????????# # ! " " #???####"# | | ?????????????????# # "Y" #???# | | ?????????????????# # """ #???# | | ######???????????# # #???# | | #???????????###########+######+######### | | "G"" #??????????????????# # | | " " #??????????????????# # | | " " #????????########### # | | #????????# """"" # + | | #????????# """"" # # | | #????????# """ # ######### ###### | | #????????# # #???????# # | | +########?????# =#[ #???????# # | | #######a ! %rk= ######### # ] | | k *#%* + ! [ # # | | ####### #%! # # + | | +###### #?????###########@%u # # # | | !## #?????# ?# * # """ # # | | ## #?????# # # """ # # | | [ ! ## #?????# # # """ # # | | ## #?????# / s # !# ###### | | !/ / + #?????#]= """ # + """ # ^ | | !// ## #?????#]= """ # a # """ + | | !/ ## #???????= """?# # """??# | | ## #???????? ! ?# # ???# ]!! | | #######+##############??# ######### ]! | | ??# #?????# ^ ]! | | ??# """ ]! ] #?????# | | ??# """ !! ####### g | | ??# """ # # """ | | ??# # #//* """ | | ??# """ """ """ # #/** """ "" #####+ | | ??# """ """ """ # #/*! """ #?? | | ??# """ """ """ # # """" F" ## | | ??# # t # """" """ ## | | ??# # ! # """" "" + | | ############+###### # ## ! | | # # ## ! | | # # ! # ! | | + ]# # | | ##+############ # # # | +----------------------------------------------------+ Best States ------------- Heat Dissipation 71 Energy Generation 30 Energy Capacity 315 Matter Stores 300 Matter Capacity 300 Sight Range 16 Robot Scan Range 20 Terrain Scan Density 10 Evasion (%) 64 Targeting Accuracy 8 Offensive Hacking 53 Defensive Hacking 22 Item Schematics ----------------- Hacking Suite | -8/Materials | Hacked Cld. VTOL Module | -7/Factory | Hacked Imp. Hacking Suite | -7/Factory | Hacked Hyp. Coil Gun | -7/Factory | Hacked Imp. Target Analyzer | -7/Factory | Hacked Imp. System Shield | -7/Factory | Hacked Robot Schematics ------------------ None Fabricated ------------ Cld. VTOL Module | x1 | -7/Factory Cld. VTOL Module | x1 | -7/Factory Imp. Hacking Suite | x1 | -7/Factory Imp. Hacking Suite | x1 | -7/Factory Imp. Hacking Suite | x1 | -7/Factory Imp. Hacking Suite | x1 | -7/Factory Imp. System Shield | x1 | -7/Factory Alien Tech Used ----------------- None Achievements -------------- None Challenges ------------ None RPGLIKE | -11 -10 -10 -10 -9 -8 -7 -7 -7 --------- Run | Scr Mat Min Exi Min Mat Fac Was Fac Levels Raised 14 | . 2 . 1 . 7 3 . 1 XP Earned 24408 | 3000 3121 1200 200 500 11155 4165 139 928 XP Spent 23035 | 2770 2400 . 2200 . 9140 4900 . 1625 Upgrades 37 | 8 3 . 2 . 12 2 . 10 Power Slot 1 | . . . . . 1 . . . Propulsion Slot 3 | 1 1 . . . 1 . . . Utility Slot 8 | 2 1 . 1 . 2 2 . . Weapon Slot 2 | 1 . . 1 . . . . . Heat Dissipation 3 | 2 . . . . 1 . . . Energy Generation 1 | . . . . . 1 . . . Mass Support 2 | 1 . . . . 1 . . . Inventory Capacity 4 | 1 1 . . . 2 . . . Sensor Range 10 | . . . . . . . . 10 Ranged Accuracy 2 | . . . . . 2 . . . Hack Attack % 1 | . . . . . 1 . . . Protomatter Created 1638 | . 327 70 . . 913 234 . 94 Integrity Restored 3527 | . 583 203 . . 2087 468 . 186 Core 3114 | . 503 156 . . 1822 468 . 165 Parts 413 | . 80 47 . . 265 . . 21 Protomatter Decayed 384 | . 128 . . . 218 33 . 5 Game ------ Seed SwordHeatMultirail Manual? 0 Play Time 01:01:54 Cumulative 995.7 hours Start 2020.01.10 @ 10:02:49 End 2020.01.10 @ 11:08:35 Sessions 1 Manual Loads 0 Difficulty Rogue Special Mode Winter2019/RPGLIKE Game No. 319 Rogue 319 Adventurer 0 Explorer 0 Win Type - Total 72 Types 14/7/32/4/1/2/12 Lore% 97 Gallery% 95 Achievement% 84 Wizard Run 0 Options --------- ASCII 0 Keyboard 0 Movement Numpad Keybinds 0 Fullscreen 1 Font 18/SmallcapsGlow Map View 76x50 Tactical HUD 1 Map Filters NONE Filters NONE Steam 1 RUN: d56b43d0-a7ed-4ceb-a178-1ca7981cdf28